[Event "9th Floripa Open 2023"]
[Site "Florianopolis"]
[Date "2023.01.26"]
[Round "5.9"]
[White "Matsuura, Everaldo"]
[Black "Burgos, Marcelo Alves"]
[Result "1-0"]
[ECO "B86"]
[WhiteElo "2426"]
[BlackElo "2143"]
[Annotator "TA"]
[PlyCount "133"]
[EventDate "2023.01.23"]
[EventType "swiss"]
[EventCountry "BRA"]
[SourceTitle "playchess.com"]
[Source "ChessBase"]
[SourceQuality "1"]
[TimeControl "5400+30"]

{[%evp 24,133,-54,-39,-22,-74,-50,-47,-40,-38,9,9,8,0,21,22,46,48,60,36,56,51,69,67,63,63,72,62,81,84,112,115,102,104,114,116,235,249,226,232,191,200,185,202,185,179,187,137,181,168,173,112,104,78,85,85,85,85,85,68,68,80,64,68,125,126,128,131,151,132,175,171,1012,836,707,321,286,284,355,217,300,328,440,426,650,262,175,143,141,122,254,245,254,248,230,240,216,79,110,39,200,150,148,121,550,538,29979,29980,29980,29981,29981,29980]} 1. e4 {[%emt 0:01:32]} c5 {[%emt 0:06:26]} 2. Nf3 {[%emt 0:00:25]} d6 {[%emt 0:00:10]} 3. d4 {[%emt 0:00:14]} cxd4 {[%emt 0:00:12]} 4. Nxd4 {[%emt 0:00:09]} Nf6 {[%emt 0:00:11]} 5. Nc3 {[%emt 0:00:11]} a6 {[%emt 0:00:06]} 6. Bc4 {[%emt 0:00:49]} e6 {[%emt 0:00:14]} 7. a3 {[%emt 0:00:10]} Be7 {[%emt 0:01:21]} 8. Ba2 {[%emt 0:00:17]} b5 {[%emt 0:02:45]} 9. O-O {[%emt 0:00:30]} O-O {[%emt 0:01:28]} 10. f4 {[%emt 0:00:57]} Nbd7 {[%emt 0:03:14]} 11. f5 {[%emt 0:08:07]} e5 {[%emt 0:01:43]} 12. Nde2 {[%emt 0:00:14]} Bb7 {[%emt 0:00:33]} 13. Ng3 {[%emt 0:00:20]} Rc8 {[%emt 0:03:07][%cal Oc8c3] B86: Sicilian Scheveningen/Najdorf: 6 Bc4, without early ...b5.} 14. Bg5 {[%emt 0:01:35]} (14. Qf3 $11) 14... a5 {[%emt 0:09:34]} (14... Rxc3 $5 15. bxc3 Nxe4 16. Nxe4 Bxe4 17. Bxe7 Qxe7 $15) 15. Bxf6 {[%emt 0:05:29]} Nxf6 {[%emt 0:00:16] Black is slightly better.} 16. Nh5 {[%emt 0:01:04]} b4 {[%emt 0:02:36]} (16... Bxe4 $2 17. Nxf6+ (17. Nxb5 $2 Qb6+ 18. Kh1 Qxb5 $19) 17... Bxf6 18. Nxe4 $18) (16... Nxe4 $2 17. Nxe4 Bxe4 18. Qg4 $18) (16... Nxh5 $15 17. Qxh5 b4 18. axb4 axb4) 17. Nxf6+ $11 {[%emt 0:02:06]} Bxf6 {[%emt 0:00:21] This pair of bishops is nice.} 18. Nd5 {[%emt 0:07:10] Repels Qb6+} Bxd5 {[%emt 0:02:12]} 19. Bxd5 {[%emt 0:02:11]} Qc7 {[%emt 0:01:03] Black is weak on the light squares} (19... bxa3 {looks sharper.} 20. b3 Qb6+ 21. Kh1 Qc5) 20. axb4 {[%emt 0:00:46] Active counter play!} axb4 {[%emt 0:02:01] [#]} 21. Rf2 $146 {[%emt 0:07:30]} ({Predecessor:} 21. Bb3 Ra8 22. Qh5 Rxa1 23. Rxa1 Qc6 24. Bd5 Qc7 25. g3 Be7 26. Qe2 Rc8 27. Bb3 {1-0 Giaccio,A (2460)-Cubas,J (2165) South America zt 1998 (5)}) 21... Qb6 {[%emt 0:04:05]} 22. Qe2 {[%emt 0:10:26]} Bg5 {[%emt 0:05:54]} 23. Kh1 {[%emt 0:04:57]} Qd4 {[%emt 0:06:03]} 24. Rb1 {[%emt 0:01:06]} Rc7 {[%emt 0:04:10]} 25. Rf3 {[%emt 0:01:44]} Rfc8 {[%emt 0:12:23]} 26. Bb3 {[%emt 0:00:30]} Ra8 {[%emt 0:04:34]} 27. Rd3 {[%emt 0:03:23]} Qb6 {[%emt 0:00:31]} 28. Rbd1 {[%emt 0:08:36]} Be7 {[%emt 0:04:06]} 29. Qh5 {[%emt 0:04:30]} Bf8 {[%emt 0:00:32]} (29... d5 $16 {is a better defense.} 30. Rxd5 (30. Bxd5 Rf8 $16) 30... Qf6) 30. Rh3 $18 {[%emt 0:04:43][%csl Gh3][%cal Rh5h7]} h6 {[%emt 0:01:36] [#]} 31. f6 $1 {[%emt 0:00:58][%mdl 512]} Qf2 {[%emt 0:07:56]} (31... d5 32. Bxd5) 32. fxg7 {[%emt 0:01:45]} Bxg7 {[%emt 0:00:06]} 33. Rf3 {[%emt 0:08:21][%cal Rb3f7] Threatening mate with Bxf7+.} (33. Rxd6 $2 Qf1#) 33... Qe2 {[%emt 0:01:58]} 34. Rdf1 {[%emt 0:00:47][%cal Rb3f7]} (34. Rxd6 $2 Qe1+) (34. Bxf7+ Kh8 35. Rdf1 (35. Rxd6 $2 Qe1+) 35... Qxe4 $16) 34... Kh8 {[%emt 0:01:49]} 35. Qf5 {[%emt 0:00:34]} (35. Bxf7 $6 Rxf7 36. Qxf7 Rf8 37. Qxf8+ Bxf8 38. Rxf8+ Kg7 $16) (35. Qh4 $18) 35... Rca7 {[%emt 0:03:00]} 36. Bd5 {[%emt 0:00:54]} (36. Bxf7 $2 Rf8 37. R1f2 (37. R3f2 $2 Qa6 $19) 37... Qb5 $19) 36... Rf8 {[%emt 0:00:27]} 37. Rg3 {[%emt 0:03:00]} ({White should try} 37. g4 $18 {g5 would be deadly.} f6 38. R3f2) 37... Qxc2 $16 {[%emt 0:03:03]} 38. b3 {[%emt 0:04:01]} (38. Rxg7 $6 Kxg7 39. Qf6+ Kh7 $11) 38... Qb2 {[%emt 0:03:18]} 39. h3 {[%emt 0:03:40] Kh2 is the strong threat.} (39. Rxg7 $6 Kxg7 40. Qf6+ Kh7 $11) 39... Ra1 {[%emt 0:01:07]} 40. Rxa1 $40 {[%emt 0:03:28][%mdl 128] Black is in trouble.} Qxa1+ {[%emt 0:00:06]} 41. Kh2 {[%emt 0:00:03]} Qc1 {[%emt 0:01:02]} (41... Qd1 42. Bxf7 Qd2 43. Qg6 Rxf7 44. Qxf7 $18) 42. Rf3 {[%emt 0:01:33] Wards off Qf4+} (42. Bxf7 $2 {is the wrong capture.} Qf4 43. Qxf4 exf4 44. Rxg7 Kxg7 $19) 42... Qg5 {[%emt 0:01:57]} 43. Qd7 {[%emt 0:00:13]} (43. Bxf7 {is interesting.} Qh4 44. Qg6 d5 45. Rg3) 43... Qd8 {[%emt 0:01:04]} (43... f5 $14) 44. Qxd8 {[%emt 0:00:21]} ({Resist} 44. Rxf7 Qg5 $14) 44... Rxd8 {[%emt 0:00:02]} 45. Rxf7 {[%emt 0:00:09][%mdl 4096] Endgame KRB-KRB} ({But not} 45. Bxf7 Bf8) 45... Rb8 {[%emt 0:00:22]} 46. Kg3 {[%emt 0:00:58]} Kh7 {[%emt 0:00:15]} 47. Rd7 {[%emt 0:00:21]} Rb6 $2 {[%emt 0:00:13]} (47... h5 48. Rxd6 Rf8) 48. Kg4 $18 {[%emt 0:00:28]} Rb8 {[%emt 0:02:26]} 49. Kf5 {[%emt 0:00:25]} (49. Kh5 $142 Rf8 50. g4) 49... Rf8+ {[%emt 0:00:24]} 50. Bf7 {[%emt 0:00:07]} Rb8 {[%emt 0:00:26]} 51. Rxd6 {[%emt 0:01:02]} Rf8 {[%emt 0:00:44]} 52. Rd7 {[%emt 0:00:11]} Rb8 {[%emt 0:00:08]} 53. h4 {[%emt 0:01:15] Black must now prevent Kg4.} Rb6 {[%emt 0:00:10]} (53... Rc8 $142 54. Rb7 Rc2) 54. Be6 {[%emt 0:00:07]} (54. Kg4 $142 Kh8 55. Kh5) 54... h5 {[%emt 0:00:52]} 55. Rc7 {[%emt 0:01:03]} Kh6 {[%emt 0:00:23]} 56. Re7 {[%emt 0:00:15]} Bf8 {[%emt 0:00:58]} (56... Rd6 $16 57. Bd5 Bf6) 57. Re8 $1 {[%emt 0:00:13]} Bg7 {[%emt 0:00:08]} 58. g4 $1 {[%emt 0:00:57]} hxg4 {[%emt 0:00:11]} 59. Kxg4 {[%emt 0:00:02]} Rd6 {[%emt 0:01:21] [#]} 60. h5 {[%emt 0:01:00]} (60. Bf5 $1 $18) 60... Rd1 {[%emt 0:00:35] [#]} 61. Bf7 {[%emt 0:00:18]} ({Better is} 61. Bc4 $1 $16) 61... Rd6 $2 {[%emt 0:00:05]} (61... Rg1+ $14 62. Kh3 Rf1 63. Re6+ Rf6) 62. Rb8 {[%emt 0:00:41]} Rf6 {[%emt 0:00:11]} 63. Bg6 {[%emt 0:00:08]} Bf8 $2 {[%emt 0:00:10][%mdl 8192]} (63... Rf4+ $16 {is more resistant.} 64. Kg3 Rf6) 64. Bf5 {[%emt 0:00:31]} Rf7 {[%emt 0:01:28]} 65. Rb6+ {[%emt 0:00:11] White mates.} Kg7 {[%emt 0:00:05]} 66. h6+ {[%emt 0:00:07]} Kh8 {[%emt 0:00:05]} 67. Rb8 {[%emt 0:00:32] Weighted Error Value: White=0.24 (precise) /Black=0.28 (precise)} 1-0

[Event "9th Floripa Open 2023"]
[Site "Florianopolis"]
[Date "2023.01.26"]
[Round "5.10"]
[White "Nemeth Junior, Henrique"]
[Black "Cori T., Deysi"]
[Result "0-1"]
[ECO "B06"]
[WhiteElo "2193"]
[BlackElo "2356"]
[Annotator "TA"]
[PlyCount "78"]
[EventDate "2023.01.23"]
[EventType "swiss"]
[EventCountry "BRA"]
[SourceTitle "playchess.com"]
[Source "ChessBase"]
[SourceQuality "1"]
[TimeControl "5400+30"]

{[%evp 9,77,58,95,82,111,89,116,76,79,76,81,79,83,39,94,32,20,33,79,79,74,-18,-14,-27,-26,-27,-24,-46,-32,-97,-92,-111,-103,-153,-106,-154,-152,-134,-97,-139,-139,-139,-124,-147,-147,-143,-141,-200,-199,-205,-205,-198,-198,-219,-196,-191,-219,-304,-288,-424,-422,-918,-867,-5941,-5535,-6536,-6287,-29998,-29999,-29999]} 1. e4 {[%emt 0:00:02]} d6 {[%emt 0:04:22][%cal Bd7d6,Bd6d5][%mdl 32]} 2. d4 {[%emt 0:00:10]} g6 {[%emt 0:00:35]} 3. Be3 {[%emt 0:00:25]} c6 {[%emt 0:01:00]} 4. Qd2 {[%emt 0:02:31]} d5 {[%emt 0:01:15]} 5. Nc3 {[%emt 0:01:09]} Bg7 {[%emt 0:00:21]} 6. e5 {[%emt 0:02:34] B06: Modern Defence.} f6 {[%emt 0:00:20] [#]} 7. f4 {[%emt 0:00:28]} (7. Nf3 fxe5 8. Nxe5 Nd7 $14) 7... Nh6 {[%emt 0:00:15]} 8. Nf3 {[%emt 0:00:16] [#] White is better.} Bg4 $146 {[%emt 0:04:42]} ({Predecessor:} 8... O-O 9. O-O-O Bg4 10. Be2 Nd7 11. h3 Bxf3 12. Bxf3 Nb6 13. Be2 Nf5 {1-0 Kunc,J (1798)-Mueller,M (2102) Klatovy op 22nd 2016 (2)}) 9. Be2 {[%emt 0:03:22]} Nf5 {[%emt 0:02:08]} 10. O-O-O {[%emt 0:11:08]} Nd7 {[%emt 0:02:25]} 11. Rhf1 {[%emt 0:02:55]} Qb6 {[%emt 0:17:54]} (11... Bxf3 $14 12. Bxf3 Nxe3 13. Qxe3 O-O) 12. h3 {[%emt 0:03:18]} (12. Bf2 $16) 12... Bxf3 $14 {[%emt 0:04:21]} 13. Rxf3 {[%emt 0:02:08]} fxe5 {[%emt 0:05:29]} (13... Nxe3 $14 14. Na4 Nc4 15. Bxc4 (15. Nxb6 Nxd2 16. Nxa8 Nxf3 $11) 15... Qc7) 14. fxe5 $16 {[%emt 0:07:22][%cal Of3f5] Threatens to win with Rxf5!} (14. dxe5 Nxe3 15. Na4 Qc7 16. Qxe3 Qa5 $11) 14... Nxe3 {[%emt 0:05:45] [#]} 15. Qxe3 {[%emt 0:00:26] [#]} (15. Na4 $1 $16 {[%cal Ra4b6]} Qd8 16. Qxe3 (16. Rxe3 Bh6 $17)) 15... Nxe5 $1 $11 {[%emt 0:01:33]} 16. Na4 {[%emt 0:03:05]} (16. dxe5 $2 {too greedy.} Qxe3+ 17. Rxe3 Bh6 $19) (16. Rff1 $5 {[%cal Rc3a4]} Nf7 17. Kb1 $15) (16. Rff1 Nf7) 16... Qa5 {[%emt 0:00:32]} 17. dxe5 {[%emt 0:00:18] Nc5 is the strong threat.} Qxa4 {[%emt 0:00:06]} 18. Kb1 {[%emt 0:06:35][%cal Oc2c4]} Qa5 {[%emt 0:12:40]} (18... Qe4 {simplifies} 19. Qxe4 dxe4 20. Rb3 Bxe5 21. Rxb7 Rf8) 19. e6 {[%emt 0:11:59]} ({White should try} 19. Bd3 $15) 19... O-O-O $17 {[%emt 0:03:46]} 20. Rf7 {[%emt 0:01:37][%csl LRe7,LRg7]} Bf6 {[%emt 0:00:02]} 21. c3 {[%emt 0:09:23]} (21. Rf1 $142) 21... Qb6 {[%emt 0:03:42]} (21... d4 $142 22. cxd4 Bxd4) 22. Qxb6 {[%emt 0:07:59]} (22. Qd3 $142) 22... axb6 {[%emt 0:00:01]} 23. Rf1 {[%emt 0:00:07]} Rdf8 {[%emt 0:08:52]} 24. Rxf8+ {[%emt 0:00:56]} Rxf8 {[%emt 0:00:01][%mdl 4096] Endgame KRB-KRB} 25. h4 {[%emt 0:00:09]} h5 {[%emt 0:01:52]} 26. g3 {[%emt 0:06:23]} Kc7 {[%emt 0:00:31]} 27. Rg1 {[%emt 0:02:19]} Kd6 {[%emt 0:03:53]} 28. g4 {[%emt 0:00:12]} (28. Bd3 $17) 28... Bxh4 $19 {[%emt 0:00:33] Hoping for ...Bf2.} 29. gxh5 {[%emt 0:00:25]} gxh5 {[%emt 0:00:01]} ({And not} 29... Kxe6 30. Rxg6+ Kf7 31. Bg4 $15) 30. Bxh5 {[%emt 0:02:21]} Kxe6 {[%emt 0:00:02]} 31. Rg4 {[%emt 0:00:09]} Rf1+ {[%emt 0:02:38]} 32. Kc2 {[%emt 0:00:05]} Rf2+ {[%emt 0:00:04]} 33. Kd3 {[%emt 0:01:54]} Bf6 {[%emt 0:02:06][%cal Of2h2]} 34. Rb4 {[%emt 0:00:06]} (34. c4 $142) 34... b5 {[%emt 0:00:10][%cal Bb6b5,Bb5c4][%mdl 32] And now ...Bg5 would win.} 35. a4 {[%emt 0:00:14]} (35. Ke3 $142 Rh2 36. Be2) 35... Bg5 {[%emt 0:01:09][%csl Gg5][%cal Rf2d2]} 36. c4 {[%emt 0:03:56]} bxc4+ {[%emt 0:00:50]} 37. Kd4 {[%emt 0:00:12]} Kd6 {[%emt 0:01:17] ( -> ...c5+)} 38. Rxb7 {[%emt 0:00:25]} c5+ {[%emt 0:00:09]} 39. Kc3 {[%emt 0:00:05]} Bf6# {[%emt 0:12:38] Weighted Error Value: White=0.88/Black=0.09 (flawless)} 0-1